fUST/lending_fUST_20250628
["ID","MTS","AMOUNT","RATE_DAILY","PERIOD"]
[368209987,1751059853631,-1692.279498,0.0002082,2]
[368209988,1751059853640,-446.376037,0.0002082,2]
[368209989,1751059853649,-446.376037,0.0002082,2]
[368209990,1751059853658,-263.643916,0.0002082,2]
[368209991,1751059853667,-263.643916,0.0002082,2]
[368209992,1751059853675,-460.0,0.00020821,2]
[368209993,1751059853683,-460.0,0.00020821,2]
[368209994,1751059853692,-434.20102481,0.00020821,2]
[368209995,1751059853701,-460.0,0.00020821,2]
[368209996,1751059853710,-154.5314504,0.00020821,2]
[368209997,1751059853719,-212.36546775,0.00020821,2]
[368209998,1751059853728,-460.0,0.00020821,2]
[368209999,1751059853737,-584.04,0.00020821,2]
[368210000,1751059853745,-460.0,0.00020821,2]
[368210001,1751059853754,-460.0,0.00020821,2]
[368210002,1751059853763,-273.04735139,0.00020821,2]
[368210003,1751059853771,-460.0,0.00020821,2]
[368210004,1751059853780,-460.0,0.00020821,2]
[368210005,1751059853788,-460.0,0.00020821,2]
[368210006,1751059853797,-460.0,0.00020821,2]
[368210007,1751059853805,-807.05,0.00020821,2]
[368210008,1751059853814,-460.0,0.00020821,2]
[368210009,1751059853823,-460.0,0.00020821,2]
[368210010,1751059853831,-460.0,0.00020821,2]
[368210011,1751059853840,-460.0,0.00020821,2]
[368210012,1751059853849,-460.0,0.00020821,2]
[368210013,1751059853858,-482.33,0.00020821,2]
[368210014,1751059853866,-460.0,0.00020821,2]
[368210015,1751059853875,-460.0,0.00020821,2]
[368210016,1751059853883,-460.0,0.00020821,2]
[368210017,1751059853892,-460.0,0.00020821,2]
[368210018,1751059853900,-358.65081265,0.00020821,2]
[368210019,1751059853909,-460.0,0.00020821,2]
[368210020,1751059853917,-505.97,0.00020821,2]
[368210021,1751059853926,-480.43,0.00020821,2]
[368210022,1751059853934,-151.0,0.00020821,2]
[368210023,1751059853943,-151.0,0.00020821,2]
[368210024,1751059853951,-151.0,0.00020821,2]
[368210025,1751059853960,-175.822523,0.00020821,2]
[368210026,1751059853968,-456.992,0.00020821,2]
[368210027,1751059853977,-151.0,0.00020821,2]
[368210028,1751059853984,-175.822523,0.00020821,2]
[368210029,1751059853992,-736.02,0.00020821,2]
[368210030,1751059854001,-535.79,0.00020821,2]
[368210031,1751059854011,-460.0,0.00020821,2]
[368210032,1751059854020,-460.0,0.00020821,2]
[368210033,1751059854030,-1843.63,0.00020821,2]
[368210034,1751059854039,-554.34,0.00020821,2]
[368210035,1751059854047,-632.84,0.00020821,2]
[368210036,1751059854057,-534.24,0.00020821,2]
[368210037,1751059854066,-460.0,0.00020821,2]
[368210038,1751059854075,-538.57,0.00020821,2]
[368210039,1751059854084,-721.77,0.00020821,2]
[368210040,1751059854093,-685.27,0.00020821,2]
[368210041,1751059854103,-1146.55,0.00020821,2]
[368210042,1751059854113,-463.94,0.00020821,2]
[368210043,1751059854122,-1032.51,0.00020821,2]
[368210044,1751059854131,-1740.47,0.00020821,2]
[368210045,1751059854141,-460.0,0.00020821,2]
[368210046,1751059854151,-460.0,0.00020821,2]
[368210047,1751059854160,-2833.9,0.00020821,2]
[368210048,1751059854169,-2925.91,0.00020821,2]
[368210049,1751059854182,-460.0,0.00020821,2]
[368210050,1751059854191,-610.39,0.00020821,2]
[368210051,1751059854201,-3411.96,0.00020821,2]
[368210052,1751059854210,-460.0,0.00020821,2]
[368210053,1751059854220,-460.0,0.00020821,2]
[368210054,1751059854230,-460.0,0.00020821,2]
[368210055,1751059854240,-575.73,0.00020821,2]
[368210056,1751059854250,-460.0,0.00020821,2]
[368210057,1751059854261,-5400.88,0.00020821,2]
[368210058,1751059854271,-460.0,0.00020821,2]
[368210059,1751059854281,-500.0,0.00020821,2]
[368210060,1751059854291,-613.16,0.00020821,2]
[368210061,1751059854300,-1518.34,0.00020821,2]
[368210062,1751059854309,-2112.7,0.00020821,2]
[368210063,1751059854318,-460.0,0.00020821,2]
[368210064,1751059854327,-2017.59,0.00020821,2]
[368210065,1751059854337,-682.29,0.00020821,2]
[368210066,1751059854346,-559.54,0.00020821,2]
[368210067,1751059854356,-4888.98,0.00020821,2]
[368210068,1751059854366,-460.0,0.00020821,2]
[368210069,1751059854376,-1040.67,0.00020821,2]
[368210070,1751059854385,-849.9,0.00020821,2]
[368210071,1751059854394,-1397.72,0.00020821,2]
[368210072,1751059854403,-671.09,0.00020821,2]
[368210073,1751059854413,-749.3,0.00020821,2]
[368210074,1751059854422,-374.97396452,0.00020821,2]
[368210075,1751059854431,-460.0,0.00020821,2]
[368210076,1751059854441,-460.0,0.00020821,2]
[368210077,1751059854450,-748.21,0.00020821,2]
[368210078,1751059854459,-1458.43,0.00020821,2]
[368210079,1751059854469,-2371.99,0.00020821,2]
[368210080,1751059854479,-644.03,0.00020821,2]
[368210081,1751059854488,-569.25,0.00020821,2]
[368210082,1751059854498,-467.82722845,0.00020821,2]
[368210083,1751059854507,-587.46,0.00020821,2]
[368210084,1751059854517,-703.34,0.00020821,2]
[368210085,1751059854526,-4481.33,0.00020821,2]
[368210086,1751059854535,-460.0,0.00020821,2]
[368210087,1751059854688,-1352.98,0.00020821,2]
[368210088,1751059854699,-460.0,0.00020821,2]
[368210089,1751059854708,-894.55,0.00020821,2]
[368210090,1751059854718,-246.45618443,0.00020821,2]
[368210091,1751059854729,-1968.67,0.00020821,2]
[368210092,1751059854739,-151.0,0.00020821,2]
[368210093,1751059854748,-460.0,0.00020821,2]
[368210094,1751059854758,-460.0,0.00020821,2]
[368210095,1751059854768,-460.0,0.00020821,2]
[368210096,1751059854779,-5486.24,0.00020821,2]
[368210097,1751059854789,-529.91,0.00020821,2]
[368210098,1751059854799,-460.0,0.00020821,2]
[368210099,1751059854809,-756.72,0.00020821,2]
[368210100,1751059854819,-770.22,0.00020821,2]
[368210101,1751059854830,-2987.28,0.00020821,2]
[368210102,1751059854840,-460.0,0.00020821,2]
[368210103,1751059854851,-977.92,0.00020821,2]
[368210104,1751059854861,-3584.12,0.00020821,2]
[368210105,1751059854871,-460.0,0.00020821,2]
[368210106,1751059854881,-652.23,0.00020821,2]
[368210107,1751059854890,-755.55,0.00020821,2]
[368210108,1751059854900,-252.0,0.0002084,2]
[368210109,1751059854910,-6026.94369125,0.00020866,4]
[368210110,1751059854920,-500.0,0.00020876,2]
[368210111,1751059854930,-151.0,0.00020876,2]
[368210112,1751059854940,-151.0,0.00020876,2]
[368210113,1751059854950,-151.0,0.00020876,2]
[368210114,1751059854959,-151.0,0.00020876,2]
[368210115,1751059854969,-151.0,0.00020876,2]
[368210116,1751059854978,-306.660966,0.00020876,2]
[368210117,1751059854988,-306.660966,0.00020876,2]
[368210118,1751059854998,-151.0,0.00020876,2]
[368210119,1751059855008,-151.0,0.00020876,2]
[368210120,1751059855018,-151.0,0.00020876,2]
[368210121,1751059855027,-151.0,0.00020876,2]
[368210122,1751059855037,-500.0,0.00020876,2]
[368210123,1751059855047,-151.0,0.00020876,2]
[368210124,1751059855057,-151.0,0.00020876,2]
[368210125,1751059855066,-500.0,0.00020876,2]
[368210126,1751059855076,-151.0,0.00020876,2]
[368210127,1751059855085,-500.0,0.00020876,2]
[368210128,1751059855095,-151.0,0.00020876,2]
[368210129,1751059855104,-151.0,0.00020876,2]
[368210130,1751059855114,-272.65372998,0.00020876,2]
[368210131,1751059855123,-151.0,0.00020876,2]
[368210132,1751059855133,-206.90205378,0.00020876,2]
[368210133,1751059855142,-151.0,0.00020876,2]
[368210134,1751059855152,-151.0,0.00020876,2]
[368210135,1751059855162,-151.0,0.00020876,2]
[368210136,1751059855171,-151.0,0.00020876,2]
[368210137,1751059855185,-500.0,0.00020876,2]
[368210138,1751059855194,-151.0,0.00020876,2]
[368210139,1751059855204,-151.0,0.00020876,2]
[368210140,1751059855214,-500.0,0.00020876,2]
[368210141,1751059855224,-198.0,0.00020876,2]
[368210142,1751059855234,-151.0,0.00020876,2]
[368210143,1751059855244,-151.0,0.00020876,2]
[368210144,1751059855253,-151.0,0.00020876,2]
[368210145,1751059855262,-226.58064634,0.00020876,2]
[368210146,1751059855272,-271.78846575,0.00020876,2]
[368210147,1751059855281,-151.0,0.00020876,2]
[368210148,1751059855292,-151.0,0.00020903,2]
[368210149,1751059855301,-151.0,0.00020903,2]
[368210150,1751059855310,-151.0,0.00020903,2]
[368210151,1751059855320,-500.0,0.00020903,2]
[368210152,1751059855330,-500.0,0.00020903,2]
[368210153,1751059855339,-500.0,0.00020903,2]
[368210154,1751059855348,-206.34393344,0.00020903,2]
[368210155,1751059855357,-151.0,0.00020903,2]
[368210156,1751059855367,-198.0,0.00020903,2]
[368210157,1751059855376,-151.0,0.00020903,2]
[368210158,1751059855385,-151.0,0.00020903,2]
[368210159,1751059855395,-500.0,0.00020903,2]
[368210160,1751059855405,-500.0,0.00020903,2]
[368210161,1751059855414,-500.0,0.00020903,2]
[368210162,1751059855424,-151.0,0.00020903,2]
[368210163,1751059855434,-151.0,0.00020903,2]
[368210164,1751059855445,-198.0,0.00020903,2]
[368210165,1751059855455,-500.0,0.00020903,2]
[368210166,1751059855464,-151.0,0.00020903,2]
[368210167,1751059855475,-500.0,0.00020903,2]
[368210168,1751059855484,-151.0,0.00020903,2]
[368210169,1751059855494,-151.0,0.00020903,2]
[368210170,1751059855504,-151.0,0.0002093,2]
[368210171,1751059855514,-151.0,0.0002093,2]
[368210172,1751059855523,-151.0,0.0002093,2]
[368210173,1751059855533,-151.0,0.0002093,2]
[368210174,1751059855543,-151.0,0.0002093,2]
[368210175,1751059855553,-151.0,0.0002093,2]
[368210176,1751059855563,-500.0,0.0002093,2]
[368210177,1751059855572,-500.0,0.0002093,2]
[368210178,1751059855582,-500.0,0.00020931,2]
[368210179,1751059855592,-151.0,0.00020931,2]
[368210180,1751059855601,-151.0,0.00020931,2]
[368210181,1751059855611,-151.3624503,0.00020931,2]
[368210182,1751059855620,-467.98735537,0.00020931,2]
[368210183,1751059855630,-500.0,0.00020931,2]
[368210184,1751059855639,-500.0,0.00020931,2]
[368210185,1751059855650,-151.0,0.00020931,2]
[368210186,1751059855659,-500.0,0.00020931,2]
[368210187,1751059855669,-151.0,0.00020931,2]
[368210188,1751059855679,-500.0,0.00020931,2]
[368210189,1751059855688,-151.0,0.00020931,2]
[368210190,1751059855697,-256.706949,0.00020931,2]
[368210191,1751059855707,-256.706949,0.00020931,2]
[368210192,1751059855717,-263.16270588,0.00020958,2]
[368210193,1751059855727,-151.0,0.00020958,2]
[368210194,1751059855737,-151.0,0.00020958,2]
[368210195,1751059855747,-302.0,0.00020958,2]
[368210196,1751059855757,-500.0,0.00020958,2]
[368210197,1751059855768,-368.561114,0.00020958,2]
[368210198,1751059855778,-368.561114,0.00020958,2]
[368210199,1751059855787,-884.983657,0.00020958,2]
[368210200,1751059855796,-884.983657,0.00020958,2]
[368210201,1751059855806,-500.0,0.00020958,2]
[368210202,1751059855816,-151.0,0.00020958,2]
[368210203,1751059855826,-198.0,0.00020958,2]
[368210204,1751059855837,-604.0,0.00020958,2]
[368210205,1751059855846,-500.0,0.00020958,2]
[368210206,1751059855856,-151.0,0.00020958,2]
[368210207,1751059855866,-349.0,0.00020958,2]
[368210208,1751059855880,-151.0,0.00020958,2]
[368210209,1751059855890,-198.0,0.00020958,2]
[368210210,1751059855900,-252.0,0.00020976,2]
[368210211,1751059855911,-151.0,0.00020985,2]
[368210212,1751059855921,-345.582158,0.00020985,2]
[368210213,1751059855931,-345.582158,0.00020985,2]
[368210214,1751059855940,-216.78937437,0.00020985,2]
[368210215,1751059855950,-151.0,0.00020985,2]
[368210216,1751059855960,-500.0,0.00020985,2]
[368210217,1751059855971,-500.0,0.00020986,2]
[368210218,1751059855981,-297.37074311,0.00020986,2]
[368210219,1751059855991,-302.0,0.00020986,2]
[368210220,1751059856000,-198.0,0.00020986,2]
[368210221,1751059856010,-237.02162087,0.00020986,2]
[368210222,1751059856019,-1893.7249452,0.00020995,2]
[368210223,1751059856029,-230.46578051,0.00021013,2]
[368210224,1751059856038,-500.0,0.00021013,2]
[368210225,1751059856048,-500.0,0.00021013,2]
[368210226,1751059856058,-151.0,0.00021013,2]
[368210227,1751059856067,-151.0,0.00021013,2]
[368210228,1751059856076,-216.247543,0.00021013,2]
[368210229,1751059856086,-216.247543,0.00021013,2]
[368210230,1751059856095,-249.715837,0.00021013,2]
[368210231,1751059856105,-249.715837,0.00021013,2]
[368210232,1751059856114,-252.0,0.00021014,2]
[368210233,1751059856124,-500.0,0.00021025,2]
[368210234,1751059856134,-747.4515171,0.00021036,2]
[368210235,1751059856144,-255.0,0.0002104,2]
[368210236,1751059856153,-500.0,0.0002104,2]
[368210237,1751059856163,-252.0,0.00021041,2]
[368210238,1751059856172,-445.02416023,0.00021068,2]
[368210239,1751059856338,-460.31,0.00020273,2]
[368210240,1751059856348,-54.97583977,0.00021068,2]
[368210241,1751059856359,-252.0,0.00021092,2]
[368210242,1751059856368,-461.30416716,0.00021095,2]
[368210243,1751059856377,-1249.26477293,0.00021095,2]
[368210244,1751059856387,-460.0,0.00021095,2]
[368210245,1751059856396,-151.0,0.00021095,2]
[368210246,1751059856406,-151.0,0.00021095,2]
[368210247,1751059856415,-151.0,0.00021095,2]
[368210248,1751059856425,-151.0,0.00021095,2]
[368210249,1751059856434,-151.0,0.00021095,2]
[368210250,1751059856443,-151.0,0.00021095,2]
[368210251,1751059856453,-151.0,0.00021095,2]
[368210252,1751059856462,-151.0,0.00021095,2]
[368210253,1751059856473,-331.505558,0.00021095,2]
[368210254,1751059856482,-331.505558,0.00021095,2]
[368210255,1751059856492,-151.0,0.00021095,2]
[368210256,1751059856502,-460.0,0.00021095,2]
[368210257,1751059856512,-584.04,0.00021095,2]
[368210258,1751059856522,-460.0,0.00021095,2]
[368210259,1751059856531,-151.0,0.00021095,2]
[368210260,1751059856541,-460.0,0.00021095,2]
[368210261,1751059856551,-261.533486,0.00021095,2]
[368210262,1751059856560,-261.533486,0.00021095,2]
[368210263,1751059856570,-460.0,0.00021095,2]
[368210264,1751059856580,-151.0,0.00021095,2]
[368210265,1751059856590,-460.0,0.00021095,2]
[368210266,1751059856599,-151.0,0.00021095,2]
[368210267,1751059856608,-178.734036,0.00021095,2]
[368210268,1751059856618,-807.05,0.00021095,2]
[368210269,1751059856628,-178.734036,0.00021095,2]
[368210270,1751059856637,-151.0,0.00021095,2]
[368210271,1751059856647,-460.0,0.00021095,2]
[368210272,1751059856657,-255.832791,0.00021095,2]
[368210273,1751059856666,-460.0,0.00021095,2]
[368210274,1751059856675,-460.0,0.00021095,2]
[368210275,1751059856685,-4.25188614,0.00021095,2]
[368210276,1751059856697,-251.58090486,0.00021095,2]
[368210277,1751059856706,-151.0,0.00021095,2]
[368210278,1751059856716,-460.0,0.00021095,2]
[368210279,1751059856726,-482.33,0.00021095,2]
[368210280,1751059856736,-460.0,0.00021095,2]
[368210281,1751059856746,-460.0,0.00021095,2]
[368210282,1751059856756,-480.43,0.00021095,2]
[368210283,1751059856766,-14.48176254,0.00021095,2]
[368210284,1751059856965,-460.0,0.00019178,2]
[368210285,1751059856975,-460.31,0.00020547,2]
[368210286,1751059856983,-160.0,0.00020624,3]
[368210287,1751059856992,-460.31,0.00020821,2]
[368210288,1751059857001,-136.51823746,0.00021095,2]
[368210289,1751059857010,-162.86176254,0.00021095,2]
[368210290,1751059857021,-12.96076046,0.00021095,2]
[368210291,1751059857030,-151.0,0.00021095,2]
[368210292,1751059857039,-175.822523,0.00021095,2]
[368210293,1751059857086,-736.02,0.00021095,2]
[368210294,1751059857096,-535.79,0.00021095,2]
[368210295,1751059857106,-514.83942294,0.00021095,2]
[368210296,1751059857115,-151.0,0.00021095,2]
[368210297,1751059857125,-151.0,0.00021095,2]
[368210298,1751059857133,-1843.63,0.00021095,2]
[368210299,1751059857142,-554.34,0.00021095,2]
[368210300,1751059857152,-534.24,0.00021095,2]
[368210301,1751059857161,-151.0,0.00021095,2]
[368210302,1751059857171,-542.42,0.00021095,2]
[368210303,1751059857192,-538.57,0.00021095,2]
[368210304,1751059857204,-721.77,0.00021095,2]
[368210305,1751059857214,-685.27,0.00021095,2]
[368210306,1751059857225,-1146.55,0.00021095,2]
[368210307,1751059857234,-463.94,0.00021095,2]
[368210308,1751059857243,-152.474555,0.00021095,2]
[368210309,1751059857254,-152.474555,0.00021095,2]
[368210310,1751059857263,-1032.51,0.00021095,2]
[368210311,1751059857273,-1740.47,0.00021095,2]
[368210312,1751059857282,-460.0,0.00021095,2]
[368210313,1751059857291,-460.0,0.00021095,2]
[368210314,1751059857301,-2833.9,0.00021095,2]
[368210315,1751059857310,-2925.91,0.00021095,2]
[368210316,1751059857320,-610.39,0.00021095,2]
[368210317,1751059857329,-3411.96,0.00021095,2]
[368210318,1751059857339,-460.0,0.00021095,2]
[368210319,1751059857348,-460.0,0.00021095,2]
[368210320,1751059857358,-460.0,0.00021095,2]
[368210321,1751059857367,-575.73,0.00021095,2]
[368210322,1751059857377,-460.0,0.00021095,2]
[368210323,1751059857386,-5400.88,0.00021095,2]
[368210324,1751059857396,-613.16,0.00021095,2]
[368210325,1751059857406,-1518.34,0.00021095,2]
[368210326,1751059857415,-2112.7,0.00021095,2]
[368210327,1751059857424,-536.7751742,0.00021095,2]
[368210328,1751059857434,-215.581128,0.00021095,2]
[368210329,1751059857443,-2017.59,0.00021095,2]
[368210330,1751059857452,-215.581128,0.00021095,2]
[368210331,1751059857462,-682.29,0.00021095,2]
[368210332,1751059857472,-1692.279498,0.00021095,2]
[368210333,1751059857482,-1692.279498,0.00021095,2]
[368210334,1751059857491,-559.54,0.00021095,2]
[368210335,1751059857501,-4888.98,0.00021095,2]
[368210336,1751059857510,-460.0,0.00021095,2]
[368210337,1751059857520,-1040.67,0.00021095,2]
[368210338,1751059857530,-849.9,0.00021095,2]
[368210339,1751059857539,-1397.72,0.00021095,2]
[368210340,1751059857548,-671.09,0.00021095,2]
[368210341,1751059857558,-749.3,0.00021095,2]
[368210342,1751059857568,-460.0,0.00021095,2]
[368210343,1751059857577,-34.37403266,0.00021095,2]
[368210344,1751059857598,-713.83596734,0.00021095,2]
[368210345,1751059857608,-1458.43,0.00021095,2]
[368210346,1751059857618,-2371.99,0.00021095,2]
[368210347,1751059857627,-644.03,0.00021095,2]
[368210348,1751059857636,-569.25,0.00021095,2]
[368210349,1751059857646,-587.46,0.00021095,2]
[368210350,1751059857656,-446.376037,0.00021095,2]
[368210351,1751059857666,-703.34,0.00021095,2]
[368210352,1751059857676,-4481.33,0.00021095,2]
[368210353,1751059857685,-460.0,0.00021095,2]
[368210354,1751059857695,-446.376037,0.00021095,2]
[368210355,1751059857705,-1352.98,0.00021095,2]
[368210356,1751059857714,-133.08644716,0.00021095,2]
[368210357,1751059857829,-460.0,0.00019178,2]
[368210358,1751059857840,-460.0,0.00019178,2]
[368210359,1751059857850,-460.0,0.00019452,2]
[368210360,1751059857859,-396.5,0.00019726,2]
[368210361,1751059857870,-326.91355284,0.00021095,2]
[368210362,1751059857880,-894.55,0.00021095,2]
[368210363,1751059857890,-1968.67,0.00021095,2]
[368210364,1751059857899,-151.0,0.00021095,2]
[368210365,1751059857909,-460.0,0.00021095,2]
[368210366,1751059857919,-460.0,0.00021095,2]
[368210367,1751059857929,-5486.24,0.00021095,2]
[368210368,1751059857939,-529.91,0.00021095,2]
[368210369,1751059857949,-460.0,0.00021095,2]
[368210370,1751059857959,-756.72,0.00021095,2]
[368210371,1751059857971,-770.22,0.00021095,2]
[368210372,1751059857982,-37.73316606,0.00021095,2]
[368210374,1751060432013,499.304038,0.00013699,2]
[368210377,1751060733110,-300.0,0.00018214,2]
[368210378,1751060733131,-300.0,0.00018214,2]
[368210379,1751060733153,-607.85013537,0.00018214,2]
[368210380,1751060752081,-592.14986463,0.00018214,2]
[368210381,1751060752101,-212.22109747,0.00018215,2]
[368210383,1751060831132,-319.0,0.00018214,2]
[368210384,1751060831156,-300.0,0.00018214,2]
[368210385,1751060831178,-76.75543763,0.00018215,2]
[368210386,1751060831199,-1064.49811082,0.00018215,2]
[368210398,1751060964424,164.8717889,0.00018061,2]
[368210438,1751061032354,-300.0,0.00018214,2]
[368210440,1751061032363,-6899.68858735,0.00018215,2]
[368210463,1751061038374,-16935.81330183,0.00018215,2]
[368210464,1751061038384,-191.88799906,0.000188,2]
[368210465,1751061038394,-191.88799906,0.000188,2]
[368210466,1751061038403,-298.1554333,0.000189,2]
[368210467,1751061038413,-889.63891334,0.00019078,2]
[368210468,1751061038423,-526.0,0.000191,2]
[368210469,1751061038434,-460.0,0.00019178,2]
[368210470,1751061038445,-460.0,0.00019178,2]
[368210471,1751061038454,-460.0,0.00019178,2]
[368210472,1751061038465,-460.0,0.00019178,2]
[368210473,1751061038475,-440.54072667,0.00019178,2]
[368210474,1751061038485,-460.0,0.00019178,2]
[368210475,1751061038504,-460.0,0.00019178,2]
[368210476,1751061038513,-191.59853848,0.00019178,2]
[368210477,1751061038522,-460.0,0.00019178,2]
[368210478,1751061038531,-460.0,0.00019178,2]
[368210479,1751061038540,-460.0,0.00019178,2]
[368210480,1751061038549,-460.0,0.00019178,2]
[368210481,1751061038559,-409.94680605,0.00019178,2]
[368210482,1751061038568,-470.07531415,0.00019178,2]
[368210483,1751061038577,-310.00762965,0.00019178,2]
[368210484,1751061038586,-460.0,0.00019178,2]
[368210485,1751061038596,-460.0,0.00019178,2]
[368210486,1751061038605,-460.0,0.00019178,2]
[368210487,1751061038614,-460.0,0.00019178,2]
[368210488,1751061038635,-460.0,0.00019178,2]
[368210489,1751061038647,-460.0,0.00019178,2]
[368210490,1751061038657,-460.0,0.00019178,2]
[368210491,1751061038667,-233.4846379,0.00019178,2]
[368210492,1751061038677,-460.0,0.00019178,2]
[368210493,1751061038686,-460.0,0.00019178,2]
[368210494,1751061038696,-524.82371217,0.00019178,2]
[368210495,1751061038705,-460.0,0.00019178,2]
[368210496,1751061038715,-460.0,0.00019178,2]
[368210497,1751061038725,-461.10927771,0.00019178,2]
[368210498,1751061038735,-460.0,0.00019178,2]
[368210499,1751061038745,-460.0,0.00019178,2]
[368210500,1751061038755,-460.0,0.00019178,2]
[368210501,1751061038764,-460.0,0.00019178,2]
[368210502,1751061038774,-460.0,0.00019178,2]
[368210503,1751061038783,-460.0,0.00019178,2]
[368210504,1751061038793,-460.0,0.00019178,2]
[368210505,1751061038803,-460.0,0.00019178,2]
[368210506,1751061038814,-460.0,0.00019178,2]
[368210507,1751061038824,-460.0,0.00019178,2]
[368210508,1751061038834,-460.0,0.00019178,2]
[368210509,1751061038843,-460.0,0.00019178,2]
[368210510,1751061038852,-464.20922617,0.00019178,2]
[368210511,1751061038862,-460.0,0.00019178,2]
[368210512,1751061038875,-460.0,0.00019178,2]
[368210513,1751061038885,-460.0,0.00019178,2]
[368210514,1751061038895,-460.0,0.00019178,2]
[368210515,1751061038905,-460.0,0.00019178,2]
[368210516,1751061038915,-460.0,0.00019178,2]
[368210517,1751061038924,-460.0,0.00019178,2]
[368210518,1751061038934,-460.0,0.00019178,2]
[368210519,1751061038944,-460.0,0.00019178,2]
[368210520,1751061038954,-460.0,0.00019178,2]
[368210521,1751061038965,-460.0,0.00019178,2]
[368210522,1751061038975,-460.0,0.00019178,2]
[368210523,1751061038985,-460.0,0.00019178,2]
[368210524,1751061038994,-460.0,0.00019178,2]
[368210525,1751061039004,-460.0,0.00019178,2]
[368210526,1751061039013,-460.0,0.00019178,2]
[368210527,1751061039023,-574.80836478,0.00019178,2]
[368210528,1751061039033,-460.0,0.00019178,2]
[368210529,1751061039043,-460.0,0.00019178,2]
[368210530,1751061039052,-460.0,0.00019178,2]
[368210531,1751061039061,-460.0,0.00019178,2]
[368210532,1751061039071,-460.0,0.00019178,2]
[368210533,1751061039080,-460.0,0.00019178,2]
[368210534,1751061039089,-460.0,0.00019178,2]
[368210535,1751061039098,-460.0,0.00019178,2]
[368210536,1751061039108,-460.0,0.00019178,2]
[368210537,1751061039117,-460.0,0.00019178,2]
[368210538,1751061039126,-460.0,0.00019178,2]
[368210539,1751061039136,-460.0,0.00019178,2]
[368210540,1751061039146,-460.0,0.00019178,2]
[368210541,1751061039155,-460.0,0.00019178,2]
[368210542,1751061039165,-460.0,0.00019178,2]
[368210543,1751061039175,-460.0,0.00019178,2]
[368210544,1751061039184,-460.0,0.00019178,2]
[368210545,1751061039194,-460.0,0.00019178,2]
[368210546,1751061039203,-460.0,0.00019178,2]
[368210547,1751061039212,-460.0,0.00019178,2]
[368210548,1751061039222,-460.0,0.00019178,2]
[368210549,1751061039232,-460.0,0.00019178,2]
[368210550,1751061039241,-460.0,0.00019178,2]
[368210551,1751061039254,-460.0,0.00019178,2]
[368210552,1751061039263,-460.0,0.00019178,2]
[368210553,1751061039272,-460.0,0.00019178,2]
[368210554,1751061039282,-460.0,0.00019178,2]
[368210555,1751061039291,-460.0,0.00019178,2]
[368210556,1751061039301,-460.0,0.00019178,2]
[368210557,1751061039310,-460.0,0.00019178,2]
[368210558,1751061039320,-460.0,0.00019178,2]
[368210559,1751061039329,-460.0,0.00019178,2]
[368210560,1751061039338,-460.0,0.00019178,2]
[368210561,1751061039348,-460.0,0.00019178,2]
[368210562,1751061039357,-460.0,0.00019178,2]
[368210563,1751061039366,-268.19606579,0.00019178,2]